fUSD/lending_fUSD_20260407
["ID","MTS","AMOUNT","RATE_DAILY","PERIOD"]
[419974564,1775578244054,-501.0,0.0001533,3]
[419974565,1775578244064,-871.95012592,0.00015393,2]
[419974566,1775578244075,-308548.53,0.000154,2]
[419974567,1775578244085,-185.5778,0.000155,2]
[419974568,1775578244096,-4000.0,0.00015507,2]
[419974569,1775578244106,-350.0,0.00015531,2]
[419974570,1775578244117,-350.0,0.00015565,2]
[419974571,1775578244126,-1074.76015955,0.00015634,2]
[419974572,1775578244137,-1115.7977745,0.00015634,2]
[419974573,1775578244147,-1082.15256075,0.00015634,2]
[419974574,1775578244158,-1057.23220674,0.00015634,2]
[419974575,1775578244168,-1084.83653138,0.00015634,2]
[419974576,1775578244179,-1027.24773534,0.00015634,2]
[419974577,1775578244189,-1056.06375453,0.00015634,2]
[419974578,1775578244200,-563.8666286,0.0001568,2]
[419974579,1775578244210,-239.373367,0.0001568,7]
[419974580,1775578244220,-160.0,0.0001568,2]
[419974581,1775578244232,-1350.631906,0.0001568,2]
[419974582,1775578244242,-2541.263813,0.0001568,2]
[419974583,1775578244252,-389.874187,0.0001568,7]
[419974584,1775578244261,-160.0,0.0001568,2]
[419974585,1775578244271,-382.560779,0.0001568,2]
[419974586,1775578244282,-605.121558,0.0001568,2]
[419974587,1775578244292,-160.0,0.0001568,7]
[419974588,1775578244302,-231.548291,0.0001568,7]
[419974589,1775578244311,-303.096582,0.0001568,7]
[419974590,1775578244321,-387.390844,0.0001568,7]
[419974591,1775578244332,-210.28,0.00015688,2]
[419974592,1775578244342,-600.0,0.00015726,2]
[419974594,1775578244353,-1200.0,0.00015726,2]
[419974595,1775578244363,-316.82,0.00015753,2]
[419974596,1775578244374,-350.0,0.00015761,2]
[419974598,1775578244385,-1500.0,0.00015778,2]
[419974599,1775578244394,-1500.0,0.00015778,2]
[419974601,1775578244404,-1500.0,0.00015778,2]
[419974602,1775578244414,-1500.0,0.00015778,2]
[419974603,1775578244424,-1500.0,0.00015778,2]
[419974604,1775578244435,-1500.0,0.00015778,2]
[419974605,1775578244445,-1500.0,0.00015778,2]
[419974606,1775578244454,-1500.0,0.00015778,2]
[419974607,1775578244464,-1500.0,0.00015778,2]
[419974608,1775578244475,-1500.0,0.00015778,2]
[419974609,1775578244484,-350.0,0.00015803,2]
[419974610,1775578244494,-174.2635,0.0001587,2]
[419974611,1775578244504,-174.2635,0.0001588,2]
[419974612,1775578244514,-174.2635,0.0001589,2]
[419974613,1775578244524,-4000.0,0.00015895,2]
[419974614,1775578244535,-1495.0,0.000159,5]
[419974615,1775578244545,-993.0,0.000159,5]
[419974616,1775578244554,-700.0,0.00015929,2]
[419974617,1775578244564,-250.0,0.00015934,2]
[419974618,1775578244574,-232.54242935,0.00015973,2]
[419974619,1775578244584,-500.62488196,0.00015973,2]
[419974620,1775578244594,-500.0,0.00015973,2]
[419974621,1775578244603,-308.46665477,0.00015973,2]
[419974622,1775578244613,-500.0,0.00015973,2]
[419974623,1775578244996,-500.0,0.00015973,2]
[419974624,1775578245006,-500.0,0.00015973,2]
[419974625,1775578245016,-204.20995808,0.00015973,2]
[419974626,1775578245026,-500.0,0.00015973,2]
[419974627,1775578245036,-500.0,0.00015973,2]
[419974628,1775578245046,-500.0,0.00015973,2]
[419974629,1775578245056,-501.15528653,0.00015973,2]
[419974630,1775578245066,-500.0,0.00015973,2]
[419974631,1775578245076,-500.55949721,0.00015973,2]
[419974632,1775578245085,-500.0,0.00015973,2]
[419974633,1775578245095,-500.0,0.00015973,2]
[419974634,1775578245103,-500.0,0.00015973,2]
[419974635,1775578245113,-500.0,0.00015973,2]
[419974636,1775578245122,-500.0,0.00015973,2]
[419974637,1775578245132,-500.0,0.00015973,2]
[419974638,1775578245142,-500.0,0.00015973,2]
[419974639,1775578245152,-500.0,0.00015973,2]
[419974640,1775578245162,-500.0,0.00015973,2]
[419974641,1775578245171,-500.0,0.00015973,2]
[419974642,1775578245181,-500.0,0.00015973,2]
[419974643,1775578245191,-500.0,0.00015973,2]
[419974644,1775578245200,-500.0,0.00015973,2]
[419974645,1775578245209,-500.0,0.00015973,2]
[419974646,1775578245219,-500.0,0.00015973,2]
[419974647,1775578245228,-500.0,0.00015973,2]
[419974648,1775578245238,-500.0,0.00015973,2]
[419974649,1775578245248,-500.0,0.00015973,2]
[419974650,1775578245258,-500.0,0.00015973,2]
[419974651,1775578245268,-500.0,0.00015973,2]
[419974652,1775578245277,-500.78094914,0.00015973,2]
[419974653,1775578245286,-500.0,0.00015973,2]
[419974654,1775578245296,-57636.64122745,0.00015999,2]
[419974655,1775578245306,-480905.74950086,0.00016,2]
[419974656,1775578245323,-6424.87448074,0.00016,2]
[419974657,1775578245335,-363.98,0.00016,2]
[419974658,1775578245377,-922.5767713,0.00016,2]
[419974659,1775578245573,-170.33628613,0.00014661,2]
[419974660,1775578245582,-19829.66371387,0.00016,2]
[419974661,1775578245604,-3878.58457287,0.00016,2]
[419974662,1775578245642,-1713.08439306,0.00016,2]
[419974663,1775578245653,-293.69552883,0.00016,2]
[419974664,1775578245672,-378.36529483,0.00016,2]
[419974665,1775578245684,-1012.13581409,0.00016,2]
[419974681,1775578467820,-176.77,0.00011083,2]
[419974682,1775578552538,-500.0,0.00012039,2]
[419974683,1775578552569,-2133.42,0.00012306,2]
[419974684,1775578552598,-1200.0,0.00012419,2]
[419974685,1775578552627,-300.0,0.00012419,2]
[419974686,1775578552656,-300.0,0.00012419,2]
[419974687,1775578552744,-1133.17,0.0001242,2]
[419974688,1775578554655,-3866.83,0.0001242,2]
[419974689,1775578554686,-600.0,0.0001242,2]
[419974690,1775578554718,-250.0,0.0001242,2]
[419974691,1775578554749,-176.77,0.00012468,2]
[419974692,1775578554805,-500.0,0.00012573,2]
[419974693,1775578554835,-500.0,0.00012573,2]
[419974694,1775578554866,-500.0,0.00012573,2]
[419974695,1775578554896,-500.0,0.00012573,2]
[419974696,1775578554928,-190.59009855,0.00012596,2]
[419974697,1775578554962,-500.0,0.00012596,2]
[419974698,1775578554993,-500.0,0.00012596,2]
[419974699,1775578555027,-196.57543398,0.00012596,2]
[419974700,1775578555058,-339.42606136,0.00012596,2]
[419974701,1775578555089,-366.79506563,0.00012596,2]
[419974702,1775578555120,-500.0,0.00012596,2]
[419974703,1775578555158,-313.23668096,0.00012596,2]
[419974704,1775578555203,-186.76331904,0.00012596,2]
[419974705,1775578555234,-150.0,0.00012596,2]
[419974706,1775578561240,300.0,0.00012596,2]
[419974707,1775578562654,169.35,0.000161,120]
[419974708,1775578571794,500.0,0.00012573,2]
[419974709,1775578590890,453.14970786,0.00012596,2]
[419974710,1775578590939,190.77370002,0.00012596,2]
[419974711,1775578616541,10000.0,0.00016,120]
[419974712,1775578621148,300.0,0.00012596,2]
[419974713,1775578650903,1600.0,0.00012527,2]
[419974714,1775578651754,345.66938649,0.00012548,2]
[419974715,1775578679307,2437.5745,0.00012497,2]
[419974716,1775578681157,300.0,0.00012596,2]
[419974717,1775578681666,150.0,0.00012596,2]
[419974718,1775578682203,300.0,0.00012596,2]
[419974719,1775578682548,2449.31606755,0.00012548,2]
[419974720,1775578682574,2862.32342983,0.00012548,2]
[419974721,1775578685455,456.75654594,0.00012596,2]
[419974722,1775578685615,500.0,0.00012596,2]
[419974723,1775578698258,500.0,0.00012596,2]
[419974724,1775578698294,500.0,0.00012596,2]
[419974725,1775578698330,500.0,0.00012596,2]
[419974726,1775578698370,500.0,0.00012596,2]
[419974727,1775578698406,500.0,0.00012596,2]
[419974728,1775578698598,500.0,0.00012596,2]
[419974729,1775578698633,500.0,0.00012596,2]
[419974730,1775578698667,500.0,0.00012596,2]
[419974731,1775578698702,500.0,0.00012596,2]
[419974732,1775578698738,500.0,0.00012596,2]
[419974733,1775578698774,500.0,0.00012596,2]
[419974734,1775578698810,500.0,0.00012596,2]
[419974735,1775578698849,180.93002423,0.00012596,2]
[419974736,1775578698879,319.06997577,0.00012596,2]
[419974737,1775578698918,500.0,0.00012596,2]
[419974738,1775578698959,151.0,0.00012594,2]
[419974739,1775578699013,500.0,0.00012596,2]
[419974740,1775578699085,500.0,0.00012596,2]
[419974741,1775578699120,500.0,0.00012596,2]
[419974742,1775578699154,500.0,0.00012596,2]
[419974743,1775578699602,500.0,0.00012596,2]
[419974744,1775578699638,500.0,0.00012596,2]
[419974745,1775578699676,500.0,0.00012596,2]
[419974746,1775578699725,334.00960896,0.00012596,2]
[419974747,1775578713841,500.0,0.00012596,2]
[419974748,1775578713876,500.0,0.00012596,2]
[419974749,1775578713911,500.0,0.00012596,2]
[419974750,1775578713947,500.0,0.00012596,2]
[419974751,1775578713992,500.0,0.00012596,2]
[419974752,1775578714024,500.0,0.00012596,2]
[419974753,1775578714057,500.0,0.00012596,2]
[419974754,1775578714104,500.0,0.00012596,2]
[419974755,1775578714141,500.0,0.00012596,2]
[419974756,1775578714175,500.0,0.00012596,2]
[419974757,1775578714221,195.93041527,0.00012596,2]
[419974758,1775578714249,304.06958473,0.00012596,2]
[419974759,1775578714283,500.0,0.00012596,2]
[419974760,1775578714318,500.0,0.00012596,2]
[419974761,1775578714352,500.0,0.00012596,2]
[419974762,1775578714387,500.0,0.00012596,2]
[419974763,1775578714428,334.00960895,0.00012596,2]
[419974764,1775578714477,500.0,0.00012596,2]
[419974765,1775578714519,500.0,0.00012596,2]
[419974766,1775578714553,500.0,0.00012596,2]
[419974767,1775578714587,500.0,0.00012596,2]
[419974768,1775578714660,500.0,0.00012596,2]
[419974769,1775578714699,500.0,0.00012596,2]
[419974770,1775578714750,500.0,0.00012596,2]
[419974771,1775578722023,3861.93080632,0.00012548,2]
[419974772,1775578722050,7255.79807157,0.00012548,2]
[419974773,1775578731443,720.97,6.178e-05,2]
[419974774,1775578731607,720.97,6.503e-05,2]
[419974775,1775578732011,720.97,6.828e-05,2]
[419974776,1775578732230,720.97,7.153e-05,2]
[419974777,1775578732428,720.97,7.478e-05,2]
[419974778,1775578732631,720.97,7.804e-05,2]
[419974779,1775578732830,720.97,8.129e-05,2]
[419974780,1775578733026,720.97,8.454e-05,2]
[419974781,1775578733231,720.97,8.779e-05,2]
[419974782,1775578733441,720.97,9.104e-05,2]
[419974783,1775578733493,-1500000.0,0.00012597,2]
[419974784,1775578733660,720.97,9.429e-05,2]
[419974785,1775578734083,720.97,9.754e-05,2]
[419974786,1775578734304,720.97,0.0001008,2]
[419974787,1775578734521,720.97,0.00010405,2]
[419974788,1775578734738,720.97,0.0001073,2]
[419974789,1775578734936,720.97,0.00011055,2]
[419974790,1775578735139,720.97,0.0001138,2]
[419974791,1775578735340,720.97,0.00011705,2]
[419974792,1775578735551,720.97,0.00012031,2]
[419974793,1775578735647,500.0,0.00012596,2]
[419974794,1775578735687,500.0,0.00012596,2]
[419974795,1775578735723,500.0,0.00012596,2]
[419974796,1775578735762,500.0,0.00012596,2]
[419974797,1775578735799,500.0,0.00012596,2]
[419974798,1775578735837,500.0,0.00012596,2]
[419974799,1775578735878,500.0,0.00012596,2]
[419974800,1775578735939,500.0,0.00012596,2]
[419974801,1775578735986,500.0,0.00012596,2]
[419974802,1775578736024,500.0,0.00012596,2]
[419974803,1775578736188,500.0,0.00012596,2]
[419974804,1775578736251,500.0,0.00012596,2]
[419974805,1775578736290,500.0,0.00012596,2]
[419974806,1775578736331,500.0,0.00012596,2]
[419974807,1775578736365,720.97,0.00012356,2]
[419974808,1775578736417,500.0,0.00012596,2]
[419974809,1775578736483,500.0,0.00012596,2]
[419974810,1775578736522,500.0,0.00012596,2]
[419974811,1775578736569,500.0,0.00012596,2]
[419974812,1775578736611,500.0,0.00012596,2]
[419974813,1775578736649,159.97041748,0.00012596,2]
[419974814,1775578736703,500.0,0.00012596,2]
[419974815,1775578736754,500.0,0.00012596,2]
[419974816,1775578754414,7444.62294292,0.00012596,2]
[419974817,1775578754445,2681.52205736,0.00012596,2]
[419974818,1775578754472,6799.43305103,0.00012596,2]
[419974819,1775578754528,1048.27959911,0.00012596,2]
[419974820,1775578754650,598.39869156,0.00012596,2]
[419974821,1775578754766,500.0,0.00012596,2]
[419974822,1775578754807,500.0,0.00012596,2]
[419974823,1775578754858,500.0,0.00012596,2]
[419974824,1775578754901,500.0,0.00012596,2]
[419974825,1775578754939,500.0,0.00012596,2]
[419974826,1775578754975,500.0,0.00012596,2]
[419974827,1775578755013,500.0,0.00012596,2]
[419974828,1775578755431,500.0,0.00012596,2]
[419974829,1775578755483,500.0,0.00012596,2]
[419974830,1775578755522,500.0,0.00012596,2]
[419974831,1775578755569,500.0,0.00012596,2]
[419974832,1775578755624,150.7869302,0.00012596,2]
[419974833,1775578755662,500.0,0.00012596,2]
[419974834,1775578755699,500.0,0.00012596,2]
[419974835,1775578759168,500.0,0.00012596,2]
[419974857,1775578807440,210.240752,0.00012596,2]
[419974870,1775578849779,-250.0,0.00012648,2]
[419974871,1775578849816,-2781.5039426,0.00012687,2]
[419974872,1775578849847,-1200.0,0.00012698,2]
[419974873,1775578850933,27963.46,0.00012098,2]
[419974874,1775578852728,-5000.0,0.00012699,2]
[419974875,1775578860705,-176.23,0.00012734,2]
[419974876,1775578860736,-1000.0,0.00012801,2]
[419974877,1775578860767,-2647.55,0.00012801,2]
[419974878,1775578861935,-150.0,0.00012734,2]
[419974879,1775578861968,-300.0,0.000128,2]
[419974880,1775578861999,-300.0,0.000128,2]
[419974881,1775578862030,-2352.45,0.00012801,2]
[419974882,1775578862062,-150.0,0.00012801,2]
[419974883,1775578862094,-322.130083,0.00012804,2]
[419974884,1775578862125,-150.0,0.00012804,2]
[419974885,1775578916800,500.0,0.00012598,2]
[419974886,1775578955576,500.0,0.00012598,2]
[419974889,1775578978400,200.0,0.000127,2]
[419974890,1775578996921,9300.01,0.00012801,2]
[419974891,1775579003494,-699.99,0.00012801,2]
[419974892,1775579019016,183.02269796,0.00012777,2]
[419974893,1775579085131,2000.0,0.00012186,2]
[419974894,1775579113797,-200.0,0.000127,2]
[419974895,1775579113830,-600.0,0.00012729,2]
[419974896,1775579113861,-151.0,0.00012758,2]
[419974897,1775579117273,200.0,0.000127,2]
[419974898,1775579122734,150.0,0.00012329,2]
[419974899,1775579122801,150.0,0.00012557,2]
[419974900,1775579122874,150.0,0.00012785,2]
[419974901,1775579123200,150.0,0.00012329,2]
[419974902,1775579124308,150.0,0.00012453,2]
[419974903,1775579124336,150.0,0.00012578,2]
[419974904,1775579124370,150.0,0.00012702,2]
[419974905,1775579124506,150.0,0.00012329,2]
[419974906,1775579124537,150.0,0.00012524,2]
[419974907,1775579124571,150.0,0.0001272,2]
[419974908,1775579124648,150.0,0.00012329,2]
[419974909,1775579126205,1000.0,0.00012801,2]
[419974910,1775579126359,150.0,0.00012329,2]
[419974911,1775579127841,150.0,0.00012329,2]
[419974912,1775579127988,150.0,0.00012671,2]
[419974913,1775579131180,150.0,0.00012329,2]
[419974914,1775579131588,150.0,0.00012329,2]
[419974915,1775579131651,150.0,0.00012453,2]
[419974916,1775579131700,150.0,0.00012578,2]
[419974917,1775579131773,150.0,0.00012702,2]
[419974918,1775579134067,150.0,0.00012329,2]
[419974919,1775579139675,150.0,0.00012329,2]
[419974920,1775579139818,150.0,0.00012329,2]
[419974921,1775579139886,150.0,0.00012603,2]
[419974922,1775579144064,150.0,0.00012329,2]
[419974923,1775579145623,150.0,0.00012329,2]
[419974924,1775579145678,150.0,0.00012603,2]
[419974925,1775579146019,2998.01,0.00012801,2]
[419974926,1775579147442,150.0,0.00012329,2]
[419974927,1775579147500,150.0,0.00012405,2]
[419974928,1775579147566,150.0,0.00012481,2]
[419974929,1775579147648,150.0,0.00012557,2]
[419974930,1775579153897,-150.0,0.00012633,2]
[419974931,1775579163655,-150.0,0.00012709,2]
[419974932,1775579163685,-150.0,0.00012785,2]
[419974933,1775579163720,-300.0,0.000128,2]
[419974934,1775579164162,-232.7824,0.00012801,2]
[419974935,1775579167810,-465.5648,0.00012801,2]
[419974936,1775579167860,-931.1296,0.00012801,2]
[419974937,1775579175947,-1862.2592,0.00012801,2]
[419974938,1775579176173,-3724.5184,0.00012801,2]
[419974939,1775579179622,-2550.9732,0.00012801,2]
[419974940,1775579179653,-421.0046841,0.00012804,2]
[419974941,1775579179683,-1000.0,0.00012804,2]
[419974942,1775579179715,-1001.01606172,0.00012804,2]
[419974943,1775579179968,-150.0,0.00012827,2]
[419974944,1775579180001,-150.0,0.00012827,2]
[419974945,1775579180033,-2940.18014375,0.00012846,2]
[419974946,1775579182320,-5000.0,0.00012801,2]
[419974947,1775579182422,164.25,0.00012057,2]
[419974948,1775579185414,-3519.6497125,0.00012846,2]
[419974949,1775579188520,-419.4821308,0.00012846,2]
[419974950,1775579191456,-10000.01,0.00012801,2]
[419974951,1775579191549,-10000.01,0.00012801,2]
[419974952,1775579282041,200.0,0.00012057,2]
[419974953,1775579375265,2097.0,0.00012598,2]
[419974954,1775579395352,150.0,0.00012219,2]
[419974960,1775579431516,-198.39676812,0.00012699,2]
[419974961,1775579431526,-280.6697894,0.00012701,2]
[419974962,1775579431537,-1154.856066,0.00012701,2]
[419974963,1775579431547,-180.50323412,0.00012701,2]
[419974964,1775579431557,-254.0,0.00012799,2]
[419974965,1775579431567,-1200.0,0.00012799,2]
[419974966,1775579431576,-300.0,0.00012799,2]
[419974967,1775579431587,-300.0,0.00012799,2]
[419974968,1775579431596,-500.0,0.000128,2]
[419974969,1775579431606,-500.0,0.000128,2]
[419974970,1775579431616,-500.0,0.000128,2]
[419974971,1775579431627,-500.0,0.000128,2]
[419974972,1775579431637,-500.0,0.000128,2]
[419974973,1775579431647,-500.0,0.000128,2]
[419974974,1775579431658,-192.3495611,0.000128,2]
[419974975,1775579431667,-500.0,0.000128,2]
[419974976,1775579431677,-500.0,0.000128,2]
[419974977,1775579431686,-500.0,0.000128,2]
[419974978,1775579431696,-500.0,0.000128,2]
[419974979,1775579431706,-500.0,0.000128,2]
[419974980,1775579431726,-415.08149124,0.000128,2]
[419974981,1775579431737,-500.0,0.000128,2]
[419974982,1775579431749,-500.0,0.000128,2]
[419974983,1775579431759,-500.0,0.000128,2]
[419974984,1775579431769,-500.0,0.000128,2]
[419974985,1775579431779,-500.0,0.000128,2]
[419974986,1775579431789,-500.0,0.000128,2]
[419974987,1775579431801,-500.0,0.000128,2]
[419974988,1775579431810,-500.0,0.000128,2]
[419974989,1775579431820,-500.0,0.000128,2]
[419974990,1775579431830,-500.0,0.000128,2]
[419974991,1775579431839,-418.87908409,0.000128,2]
[419974993,1775579431849,-150.0,0.000128,2]
[419974995,1775579431858,-6717.36390459,0.00012801,2]
[419974996,1775579431871,-421602.86260402,0.00012801,2]
[419974997,1775579431883,-2863.5207093,0.00012801,2]
[419974998,1775579431896,-34529.95231964,0.00012801,2]
[419975060,1775579438643,-151.0,0.00012742,2]
[419975062,1775579438652,-414720.07296245,0.00012801,2]
[419975064,1775579438663,-2500000.0,0.00012801,2]
[419975065,1775579438673,-1000.0,0.00012801,2]
[419975067,1775579438683,-5000.0,0.00012801,2]
[419975069,1775579438692,-5286.32166185,0.00012837,2]
[419975071,1775579438702,-1000.0,0.00012845,2]
[419975073,1775579438712,-150.0,0.00012861,2]
[419975075,1775579438722,-152.0,0.00012862,3]
[419975077,1775579438732,-500.0,0.00012873,2]
[419975079,1775579438742,-500.0,0.00012873,2]
[419975081,1775579438754,-500.0,0.00012873,2]
[419975083,1775579438765,-501.03587191,0.00012873,2]
[419975085,1775579438775,-500.0,0.00012873,2]
[419975086,1775579438785,-11870.0,0.00012877,2]
[419975088,1775579438796,-150.0,0.00012877,2]
[419975090,1775579438805,-150.0,0.00012877,2]
[419975092,1775579438815,-150.0,0.00012877,2]
[419975094,1775579438826,-200.0,0.00012893,2]
[419975096,1775579438835,-1199.20597015,0.00012893,2]
[419975098,1775579438846,-215.415209,0.00012898,2]
[419975100,1775579438855,-151.0,0.00012898,2]
[419975102,1775579438865,-226.185574,0.00012898,2]
[419975104,1775579438875,-500.0,0.000129,2]
[419975105,1775579438885,-500.0,0.000129,2]
[419975107,1775579438895,-500.0,0.000129,2]
[419975109,1775579438905,-500.0,0.000129,2]
[419975111,1775579438916,-500.0,0.000129,2]
[419975113,1775579438926,-500.0,0.000129,2]
[419975115,1775579438936,-500.0,0.000129,2]
[419975117,1775579438945,-370.76458185,0.000129,2]
[419975119,1775579438955,-500.0,0.000129,2]
[419975121,1775579438964,-150.0,0.00012916,2]
[419975123,1775579438974,-500.0,0.00012916,2]
[419975125,1775579438984,-150.0,0.00012938,2]
[419975127,1775579438994,-170.33628613,0.00012946,2]
[419975129,1775579439005,-150.0,0.00012951,2]
[419975130,1775579439014,-150.0,0.00012951,2]
[419975132,1775579439023,-668.0,0.00012952,2]
[419975134,1775579439033,-348.0,0.00012966,2]
[419975136,1775579439042,-500.0,0.00012973,2]
[419975138,1775579439051,-1768.0,0.00012978,2]
[419975140,1775579439061,-1792.0,0.00013004,2]
[419975142,1775579439071,-150.0,0.00013014,2]
[419975143,1775579439080,-150.0,0.00013014,2]
[419975145,1775579439090,-150.0,0.00013014,2]
[419975147,1775579439100,-150.0,0.00013014,2]
[419975149,1775579439109,-345.66938645,0.00013027,2]
[419975151,1775579439118,-445.0,0.00013029,2]
[419975153,1775579439128,-1773.0,0.00013053,2]
[419975155,1775579439138,-150.0,0.00013076,2]
[419975157,1775579439148,-150.0,0.00013076,2]
[419975159,1775579439157,-150.0,0.0001309,2]
[419975160,1775579439167,-501.0,0.000131,2]
[419975162,1775579439176,-150.0,0.00013112,2]
[419975164,1775579439186,-794.60130411,0.00013133,2]
[419975166,1775579439196,-260.0,0.00013144,2]
[419975168,1775579439206,-168.0,0.00013144,2]
[419975170,1775579439216,-150.0,0.00013151,2]
[419975172,1775579439226,-150.0,0.00013151,2]
[419975174,1775579439236,-500.0,0.00013151,2]
[419975176,1775579439247,-500.0,0.00013151,2]
[419975178,1775579439257,-150.0,0.00013151,2]
[419975179,1775579439267,-150.0,0.00013151,2]
[419975181,1775579439276,-524.8115188,0.00013151,2]
[419975183,1775579439286,-289.89258684,0.00013151,2]
[419975185,1775579439296,-151.16271487,0.00013151,2]
[419975187,1775579439306,-208.28084586,0.00013151,2]
[419975189,1775579439316,-500.0,0.00013151,2]
[419975191,1775579439326,-150.0,0.00013151,2]
[419975193,1775579439336,-1538.0,0.00013151,2]
[419975195,1775579439347,-500.0,0.00013151,2]
[419975197,1775579439357,-150.0,0.00013151,2]
[419975199,1775579439366,-500.0,0.00013151,2]
[419975201,1775579439376,-1538.0,0.00013151,2]
[419975203,1775579439386,-500.0,0.00013151,2]
[419975204,1775579439396,-1538.0,0.00013151,2]
[419975206,1775579439405,-500.0,0.00013151,2]
[419975207,1775579439415,-500.0,0.00013151,2]
[419975208,1775579439424,-150.0,0.00013151,2]
[419975209,1775579439434,-1538.0,0.00013151,2]
[419975210,1775579439445,-500.0,0.00013151,2]
[419975211,1775579439454,-500.0,0.00013151,2]
[419975212,1775579439464,-150.0,0.00013151,2]
[419975213,1775579439473,-1538.0,0.00013151,2]
[419975214,1775579439483,-278.57606632,0.00013151,2]
[419975215,1775579439493,-500.0,0.00013151,2]
[419975216,1775579439503,-1538.0,0.00013151,2]
[419975217,1775579439512,-500.0,0.00013151,2]
[419975218,1775579439522,-1538.0,0.00013151,2]
[419975219,1775579439532,-500.0,0.00013151,2]
[419975220,1775579439542,-1538.0,0.00013151,2]
[419975221,1775579439551,-500.0,0.00013151,2]
[419975222,1775579439561,-1538.0,0.00013151,2]
[419975223,1775579439571,-500.0,0.00013151,2]
[419975224,1775579439580,-1538.0,0.00013151,2]
[419975225,1775579439590,-150.0,0.00013151,2]
[419975226,1775579439599,-156.32549117,0.00013151,2]
[419975227,1775579439609,-500.0,0.00013151,2]
[419975228,1775579439619,-360.01646101,0.00013151,2]
[419975229,1775579439628,-150.0,0.00013151,2]
[419975230,1775579439638,-150.0,0.00013151,2]
[419975231,1775579439646,-150.0,0.00013151,2]
[419975232,1775579439656,-278.0,0.00013151,2]
[419975233,1775579439666,-150.0,0.00013151,2]
[419975234,1775579439675,-150.0,0.00013151,2]
[419975235,1775579439685,-200.0,0.00013151,2]
[419975236,1775579439695,-500.0,0.00013151,2]
[419975237,1775579439705,-500.0,0.00013151,2]
[419975238,1775579439715,-150.0,0.00013151,2]
[419975239,1775579439725,-500.0,0.00013151,2]
[419975240,1775579439734,-150.0,0.00013151,2]
[419975241,1775579439744,-500.01643822,0.00013151,2]
[419975242,1775579439753,-500.0,0.00013151,2]
[419975243,1775579439763,-150.0,0.00013151,2]
[419975244,1775579439772,-500.0,0.00013151,2]
[419975245,1775579439782,-287.9956919,0.00013151,2]
[419975246,1775579439791,-500.0,0.00013151,2]
[419975247,1775579439800,-500.0,0.00013151,2]
[419975248,1775579439809,-500.0,0.00013151,2]
[419975249,1775579439819,-500.0,0.00013151,2]
[419975250,1775579439828,-500.0,0.00013151,2]
[419975251,1775579439837,-500.0,0.00013151,2]
[419975253,1775579439846,-500.0,0.00013151,2]
[419975254,1775579439855,-500.0,0.00013151,2]